bitfinex/quotes_SOLUSD_20241123
["timestamp","ask_amount","ask_price","bid_price","bid_amount"]
[1732320395336,22.9556,256.06,255.98,11.8941149]
[1732320395535,22.9556,256.06,255.91,5.89116154]
[1732320395720,11.8941149,256.05,255.92,20.0]
[1732320395926,11.8941149,256.05,255.96,11.8941149]
[1732320396246,11.8941149,256.05,255.98,11.8941149]
[1732320396427,11.8941149,256.09,256.0,11.8941149]
[1732320396626,6.5975,256.12,256.04,11.8941149]
[1732320396838,18.4916149,256.12,256.04,11.8941149]
[1732320397539,11.8941149,256.1,256.01,5.89116154]
[1732320397728,11.8941149,256.1,256.0,11.8941149]
[1732320399126,11.8941149,256.1,256.01,5.89116154]
[1732320400222,11.8941149,256.08,256.01,5.89116154]
[1732320402850,11.8941149,256.11,256.02,11.8941149]
[1732320403149,11.8941149,256.11,256.02,17.78527644]
[1732320403943,11.8941149,256.11,256.02,11.8941149]
[1732320406145,11.8941149,256.11,255.96,16.4934]
[1732320406341,11.8941149,256.09,256.0,11.8941149]
[1732320408952,11.8941149,256.09,255.9,4.6082838]
[1732320408953,11.8941149,256.03,255.94,11.8941149]
[1732320409257,11.8941149,256.05,255.96,11.8941149]
[1732320416931,11.8941149,256.03,255.96,11.8941149]
[1732320418151,11.8941149,256.05,255.96,11.8941149]
[1732320418853,7.59677482,256.05,255.96,7.59677482]
[1732320420342,7.59677482,256.03,255.96,7.59677482]
[1732320421947,6.5975,256.12,255.94,4.90937266]
[1732320425434,6.5975,256.12,255.95,4.79905411]
[1732320425636,6.5975,256.12,255.96,5.14048377]
[1732320425944,6.5975,256.12,255.97,24.79905411]
[1732320426255,6.5975,256.12,255.98,5.14048377]
[1732320428451,16.3581,256.13,255.98,5.14048377]
[1732320428666,16.3581,256.13,255.99,15.0565]
[1732320428967,16.3581,256.13,256.0,5.36437266]
[1732320431540,6.0031,256.18,256.0,11.53547266]
[1732320431868,15.3801,256.19,256.01,4.79905411]
[1732320432041,6.0031,256.24,256.02,5.5738171]
[1732320432246,10.27792258,256.24,256.03,20.0]
[1732320432457,10.27792258,256.24,256.04,5.5738171]
[1732320433162,6.0031,256.24,256.04,5.5738171]
[1732320433758,6.0031,256.24,256.05,16.0226]
[1732320433965,6.0031,256.24,256.05,21.05276522]
[1732320434261,6.0031,256.24,256.06,5.7688171]
[1732320434463,22.1101,256.32,256.07,8.729]
[1732320434663,22.1101,256.32,256.08,25.7688171]
[1732320435278,22.1101,256.32,256.08,20.0]
[1732320435566,24.6101,256.32,256.09,5.7688171]
[1732320436645,22.1101,256.32,256.09,5.7688171]
[1732320437269,24.6101,256.32,256.09,5.7688171]
[1732320437778,24.6101,256.32,256.07,6.229]
[1732320437779,2.5,256.3,256.07,6.229]
[1732320439171,22.1101,256.32,256.07,6.229]
[1732320439356,22.1101,256.32,256.1,20.0]
[1732320439670,22.1101,256.32,256.12,20.0]
[1732320440662,15.5629,256.38,256.14,2.5]
[1732320440966,15.5629,256.38,256.15,5.7688171]
[1732320441146,15.5629,256.38,256.16,20.0]
[1732320441346,15.5629,256.38,256.17,5.7688171]
[1732320442551,15.5629,256.53,256.21,20.0]
[1732320442853,6.02104572,256.51,256.23,20.0]
[1732320443069,6.02104572,256.51,256.25,20.0]
[1732320443367,11.02104572,256.52,256.26,5.95659488]
[1732320443781,2.5,256.5,256.26,5.95659488]
[1732320443950,2.5,256.5,256.21,20.5851535]
[1732320444254,2.5,256.5,256.22,5.95659488]
[1732320444455,2.5,256.5,256.23,20.0]
[1732320444670,2.5,256.52,256.24,5.95659488]
[1732320444870,2.5,256.52,256.25,16.3052]
[1732320444871,2.5,256.51,256.25,16.3052]
[1732320445172,5.0,256.48,256.25,16.3052]
[1732320445555,2.5,256.48,256.25,16.3052]
[1732320445953,2.5,256.51,256.25,16.3052]
[1732320446170,2.5,256.51,256.25,22.26179488]
[1732320446668,2.5,256.51,256.26,6.193]
[1732320446855,22.14815036,256.53,256.26,6.193]
[1732320447257,24.64815036,256.53,256.26,6.193]
[1732320447477,2.5,256.51,256.26,6.193]
[1732320447677,2.5,256.5,256.26,6.193]
[1732320447974,2.5,256.45,256.26,6.193]
[1732320448179,6.6037,256.44,256.26,6.193]
[1732320448481,18.0629,256.43,256.25,16.3052]
[1732320449576,15.5629,256.43,256.25,16.3052]
[1732320450080,18.0629,256.43,256.25,16.3052]
[1732320450465,15.5629,256.43,256.25,16.3052]
[1732320454365,4.22028222,256.44,256.25,16.3052]
[1732320454561,2.5,256.5,256.25,16.3052]
[1732320454764,9.13800181,256.5,256.25,16.3052]
[1732320454961,6.63800181,256.5,256.25,16.3052]
[1732320455163,9.13800181,256.5,256.25,16.3052]
[1732320455478,6.63800181,256.5,256.25,16.3052]
[1732320455686,2.5,256.49,256.25,16.3052]
[1732320455887,4.13800181,256.5,256.26,6.3576]
[1732320456060,2.5,256.5,256.26,6.3576]
[1732320456468,5.0,256.5,256.26,6.3576]
[1732320456783,25.0,256.5,256.26,6.3576]
[1732320458276,22.5,256.5,256.26,6.3576]
[1732320458868,25.0,256.5,256.26,6.3576]
[1732320459176,22.5,256.5,256.26,6.3576]
[1732320459381,25.0,256.5,256.26,6.3576]
[1732320460063,2.5,256.48,256.26,6.3576]
[1732320460276,20.0,256.49,256.26,6.3576]
[1732320461493,2.5,256.45,256.26,6.3576]
[1732320461784,11.67,256.42,256.26,6.3576]
[1732320461995,14.17,256.41,256.26,6.3576]
[1732320462280,14.17,256.39,256.25,16.3052]
[1732320466582,11.67,256.39,256.25,16.3052]
[1732320466789,22.5,256.4,256.25,16.3052]
[1732320467362,2.5,256.39,256.25,16.3052]
[1732320468581,26.77800511,256.4,256.25,16.3052]
[1732320468768,2.5,256.39,256.25,16.3052]
[1732320471284,26.77800511,256.4,256.25,16.3052]
[1732320471587,24.27800511,256.4,256.25,16.3052]
[1732320471782,4.27800511,256.4,256.25,16.3052]
[1732320471983,20.0,256.46,256.25,16.3052]
[1732320472310,16.0606,256.47,256.25,16.3052]
[1732320473365,18.5606,256.47,256.25,16.3052]
[1732320473566,22.75422089,256.47,256.25,16.3052]
[1732320473877,20.25422089,256.47,256.25,16.3052]
[1732320474083,4.19362089,256.47,256.26,6.3388]
[1732320474265,6.2494,256.48,256.26,6.3388]
[1732320474759,20.0,256.47,256.27,15.5302]
[1732320475266,20.0,256.48,256.27,15.5302]
[1732320476385,2.5,256.46,256.27,15.5302]
[1732320478688,2.5,256.47,256.27,15.5302]
[1732320478882,2.5,256.46,256.27,15.5302]
[1732320479391,2.5,256.47,256.27,15.5302]
[1732320480587,2.5,256.45,256.27,15.5302]
[1732320482688,5.0,256.47,256.27,15.5302]
[1732320484178,2.5,256.45,256.27,15.5302]
[1732320485087,5.0,256.45,256.27,15.5302]
[1732320485285,2.5,256.42,256.27,15.5302]
[1732320486485,7.58511065,256.28,256.27,11.6332]
[1732320486687,20.0,256.27,256.2,6.3388]
[1732320486986,27.58511065,256.21,256.2,6.3388]
[1732320487167,27.58511065,256.21,256.2,3.08608099]
[1732320487591,20.0,256.2,255.99,2.03023345]
[1732320487770,7.58511065,256.14,256.06,7.58511065]
[1732320488889,11.86123251,256.14,256.05,11.86123251]
[1732320489876,11.86123251,256.14,256.06,15.5302]
[1732320490077,11.86123251,256.14,256.07,6.3388]
[1732320495170,11.86123251,256.14,256.07,18.20003251]
[1732320495375,11.86123251,256.18,256.09,11.86123251]
[1732320495894,11.86123251,256.16,256.07,18.20003251]
[1732320497994,11.86123251,256.14,256.07,18.20003251]
[1732320499976,11.86123251,256.16,256.07,18.20003251]
[1732320500177,20.0,256.3,256.11,11.86123251]
[1732320500376,11.86123251,256.2,256.11,11.86123251]
[1732320501381,11.86123251,256.18,256.09,11.86123251]
[1732320501673,11.86123251,256.16,256.09,11.86123251]
[1732320501891,11.86123251,256.14,256.07,18.20003251]
[1732320502277,11.86123251,256.23,256.07,18.20003251]
[1732320502278,11.86123251,256.16,256.07,18.20003251]
[1732320503891,11.86123251,256.14,256.07,6.3388]
[1732320504283,11.86123251,256.23,256.06,15.5302]
[1732320504284,11.86123251,256.1,256.06,15.5302]
[1732320505000,11.86123251,256.08,256.06,15.5302]
[1732320505200,11.86123251,256.08,256.01,6.4985]
[1732320507195,11.86123251,256.06,256.01,6.4985]
[1732320510680,7.5954134,256.07,256.01,6.4985]
[1732320513110,7.5954134,256.07,256.0,15.4556]
[1732320516911,20.0,256.14,256.0,15.4556]
[1732320517093,7.5954134,256.07,256.0,15.4556]
[1732320521414,7.5954134,256.02,255.95,6.4792]
[1732320521619,7.5954134,255.98,255.91,7.5954134]
[1732320521913,7.5954134,255.98,255.89,14.0746134]
[1732320522496,7.5954134,255.98,255.89,7.5954134]
[1732320522824,7.5954134,255.98,255.9,7.5954134]
[1732320523116,7.5954134,255.97,255.9,7.5954134]
[1732320523319,7.5954134,255.98,255.91,7.5954134]
[1732320524395,7.5954134,255.97,255.9,7.5954134]
[1732320525620,21.4913,256.05,255.88,15.0627]
[1732320525621,7.5954134,255.92,255.88,15.0627]
[1732320525825,7.5954134,255.9,255.83,6.4792]
[1732320526029,7.5954134,255.88,255.82,15.0627]
[1732320526817,7.5954134,255.88,255.79,7.5954134]
[1732320526818,7.5954134,255.86,255.79,7.5954134]
[1732320527321,7.5954134,255.86,255.77,14.0746134]
[1732320527610,7.5954134,255.86,255.78,20.0]
[1732320528727,11.88994899,255.84,255.76,15.0627]
[1732320528928,11.88994899,255.82,255.76,15.0627]
[1732320529507,11.88994899,255.82,255.74,11.88994899]
[1732320529818,11.88994899,255.82,255.72,11.88994899]
[1732320530816,20.0,255.93,255.76,11.88994899]
[1732320531021,11.88994899,255.86,255.78,11.88994899]
[1732320532428,11.88994899,255.84,255.76,11.88994899]
[1732320533909,11.88994899,255.84,255.74,11.88994899]
[1732320534128,11.88994899,255.82,255.74,11.88994899]
[1732320534311,11.88994899,255.8,255.72,11.88994899]
[1732320539519,22.3636,255.84,255.65,6.3137]
[1732320539520,11.88994899,255.78,255.7,11.88994899]
[1732320539916,11.88994899,255.76,255.68,11.88994899]
[1732320542938,22.3636,255.84,255.75,11.88994899]
[1732320543110,11.88994899,255.82,255.75,11.88994899]
[1732320543617,22.3636,255.84,255.6,3.08665284]
[1732320543618,11.88994899,255.81,255.74,11.88994899]
[1732320543823,11.88994899,255.79,255.72,11.88994899]
[1732320544413,11.88994899,255.79,255.6,0.58665284]
[1732320544620,11.88994899,255.76,255.7,11.88994899]
[1732320545148,11.88994899,255.78,255.7,11.88994899]
[1732320545446,22.3636,255.84,255.59,6.90031758]
[1732320545447,11.88994899,255.8,255.72,11.88994899]
[1732320545735,11.88994899,255.78,255.7,11.88994899]
[1732320546815,11.88994899,255.82,255.72,11.88994899]
[1732320547137,11.88994899,255.82,255.61,5.22900552]
[1732320547138,11.88994899,255.86,255.77,11.88994899]
[1732320547321,11.88994899,255.86,255.79,11.88994899]
[1732320548332,11.88994899,255.86,255.77,11.88994899]
[1732320548543,11.88994899,255.84,255.77,11.88994899]
[1732320548910,11.88994899,255.86,255.77,11.88994899]
[1732320549328,11.88994899,255.84,255.77,11.88994899]
[1732320549715,11.88994899,255.86,255.77,11.88994899]
[1732320549934,11.88994899,255.88,255.79,11.88994899]
[1732320553148,11.88994899,255.86,255.77,11.88994899]
[1732320555529,15.8697,255.9,255.75,11.88994899]
[1732320555530,11.88994899,255.84,255.75,11.88994899]
[1732320556037,27.76926403,255.97,255.63,2.5]
[1732320556038,21.5992,256.11,255.85,20.0]
[1732320556243,11.88994899,256.03,255.94,11.88994899]
[1732320556840,11.88994899,256.03,255.92,11.88994899]
[1732320557037,11.88994899,256.01,255.92,11.88994899]
[1732320558827,11.88994899,256.03,255.92,11.88994899]
[1732320559151,21.5992,256.0,255.92,11.88994899]
[1732320562356,21.5992,256.0,255.94,11.88994899]
[1732320564624,21.5992,256.0,255.92,11.88994899]
[1732320566957,21.5992,256.0,255.94,11.88994899]
[1732320567146,21.5992,256.0,255.84,22.1985342]
[1732320567450,21.5992,256.0,255.93,11.88994899]
[1732320567834,21.5992,256.0,255.85,20.0]
[1732320568034,21.5992,256.0,255.93,11.88994899]
[1732320570750,21.5992,256.0,255.91,7.60068221]
[1732320572151,21.5992,256.0,255.93,7.60068221]
[1732320575132,21.5992,256.0,255.91,7.60068221]
[1732320575334,7.60068221,255.99,255.84,30.40272884]
[1732320575644,20.0,255.98,255.89,7.60068221]
[1732320579135,20.0,255.98,255.91,7.60068221]
[1732320579537,20.0,255.99,255.91,7.60068221]
[1732320581142,20.0,255.99,255.92,7.5999135]
[1732320583359,20.0,255.99,255.81,20.0]
[1732320583545,20.0,255.99,255.92,7.5999135]
[1732320583738,20.0,255.99,255.84,30.399654]
[1732320583939,20.0,255.99,255.8,9.63161071]
[1732320584254,20.0,255.99,255.89,7.5999135]
[1732320585446,20.0,255.99,255.8,9.63161071]
[1732320585447,20.0,255.99,255.91,7.5999135]
[1732320585958,20.0,255.99,255.95,7.5999135]
[1732320587055,20.0,255.99,255.84,30.399654]
[1732320587354,20.0,255.99,255.92,7.5999135]
[1732320587746,20.0,255.99,255.8,9.63161071]
[1732320587949,20.0,255.99,255.91,7.5999135]
[1732320590561,20.0,255.99,255.8,9.63161071]
[1732320590737,20.0,255.99,255.89,7.5999135]
[1732320591146,20.0,255.99,255.93,7.5999135]
[1732320592391,20.0,255.99,255.84,30.399654]
[1732320592558,20.0,255.99,255.9,7.5999135]
[1732320593452,19.5,255.99,255.9,7.5999135]
[1732320596359,19.5,255.99,255.78,15.2567]
[1732320596563,19.5,255.99,255.91,7.5999135]
[1732320599253,2.5,255.86,255.67,5.9354167]
[1732320599564,22.7301,255.83,255.81,7.5999135]
[1732320599779,22.7301,255.83,255.67,15.0231]
[1732320600347,22.7301,255.83,255.71,30.399654]
[1732320600546,22.7301,255.83,255.8,7.5999135]
[1732320601253,22.7301,255.83,255.78,7.5999135]
[1732320601451,16.0731,255.89,255.8,7.5999135]
[1732320601660,20.0,255.88,255.82,7.5999135]
[1732320602148,16.0731,255.89,255.82,7.5999135]
[1732320603254,16.0731,255.89,255.8,7.5999135]
[1732320603464,7.5999135,255.88,255.8,7.5999135]
[1732320605273,7.5999135,255.88,255.78,7.5999135]
[1732320606167,7.5999135,255.86,255.78,7.5999135]
[1732320608471,7.5999135,255.84,255.67,15.0231]
[1732320608678,7.5999135,255.84,255.74,7.5999135]
[1732320611058,7.5999135,255.82,255.68,20.0]
[1732320611377,7.5999135,255.84,255.74,7.5999135]
[1732320612072,20.0,255.88,255.76,7.5999135]
[1732320612271,16.0731,255.95,255.87,7.5999135]
[1732320612455,16.0731,256.02,255.91,7.5999135]
[1732320612755,7.5999135,256.01,255.91,7.5999135]
[1732320613781,20.0,256.0,255.91,7.5999135]
[1732320614159,7.5999135,255.99,255.89,7.5999135]
[1732320615561,7.5999135,255.99,255.91,7.5999135]
[1732320615874,6.657,256.03,255.95,7.5999135]
[1732320617459,7.5999135,256.02,255.93,7.5999135]
[1732320617660,7.5999135,256.0,255.93,7.5999135]
[1732320618883,11.87472093,256.0,255.92,11.87472093]
[1732320620979,15.667,256.08,255.96,11.87472093]
[1732320620980,11.87472093,256.04,255.96,11.87472093]
[1732320621179,11.87472093,256.06,255.96,11.87472093]
[1732320621474,15.667,256.08,256.0,11.87472093]
[1732320621778,11.87472093,256.1,256.02,11.87472093]
[1732320622863,4.25883916,256.17,256.08,11.87472093]
[1732320623180,15.667,256.18,256.1,11.87472093]
[1732320624577,20.0,256.17,256.1,11.87472093]
[1732320628271,20.0,256.14,256.06,11.87472093]
[1732320628487,11.87472093,256.13,256.06,11.87472093]
[1732320629177,20.0,256.14,256.06,11.87472093]
[1732320629389,20.0,256.17,256.08,11.87472093]
[1732320630972,2.5,256.31,255.98,6.72253323]
[1732320630973,11.87472093,256.2,256.12,11.87472093]
[1732320632359,11.87472093,256.22,256.12,11.87472093]
[1732320632891,20.0,256.21,256.12,11.87472093]
[1732320633068,20.0,256.21,256.15,11.87472093]
[1732320633384,20.0,256.23,256.15,11.87472093]
[1732320634266,11.87472093,256.2,256.11,11.87472093]
[1732320635990,11.87472093,256.18,256.11,11.87472093]
[1732320636285,11.87472093,256.15,256.06,31.87472093]
[1732320636791,11.87472093,256.15,256.06,11.87472093]
[1732320637490,11.87472093,256.13,256.06,11.87472093]
[1732320638265,11.87472093,256.13,256.05,15.277]
[1732320638472,20.0,256.19,256.05,15.277]
[1732320638788,11.87472093,256.11,256.02,11.87472093]
[1732320639168,11.87472093,256.11,256.03,20.0]
[1732320639673,11.87472093,256.09,256.02,11.87472093]
[1732320639873,11.87472093,256.09,256.0,11.87472093]
[1732320640077,11.87472093,256.11,256.02,11.87472093]
[1732320640985,15.4613,256.2,256.09,11.87472093]
[1732320641588,11.87472093,256.19,256.11,11.87472093]
[1732320645266,11.87472093,256.17,256.07,11.87472093]
[1732320645462,11.87472093,256.17,256.09,11.87472093]
[1732320647286,21.8941,256.16,255.99,2.5]
[1732320647489,11.87472093,256.15,256.05,11.87472093]
[1732320647680,11.87472093,256.13,256.05,11.87472093]
[1732320649782,11.87472093,256.11,255.93,15.277]
[1732320650095,11.87472093,256.11,256.03,11.87472093]
[1732320651308,11.87472093,256.13,256.03,11.87472093]
[1732320651901,11.87472093,256.09,256.01,11.87472093]
[1732320652405,11.87472093,256.09,255.99,11.87472093]
[1732320652794,11.87472093,256.07,255.98,11.87472093]
[1732320653697,11.87472093,256.05,255.96,11.87472093]
[1732320656286,11.87472093,256.05,255.87,16.5289]
[1732320656287,20.0,256.02,255.94,11.87472093]
[1732320656802,20.0,256.0,255.92,11.87472093]
[1732320657385,11.87472093,255.99,255.9,11.87472093]
[1732320657590,6.3562,256.04,255.94,11.87472093]
[1732320657591,20.0,256.03,255.94,11.87472093]
[1732320657781,20.0,256.01,255.94,11.87472093]
[1732320658507,20.0,256.01,255.92,11.87472093]
[1732320659790,11.87472093,256.0,255.92,11.87472093]
[1732320660606,20.0,256.03,255.92,11.87472093]
[1732320660805,11.87472093,256.0,255.92,11.87472093]
[1732320661901,11.87472093,256.02,255.94,11.87472093]
[1732320662206,20.0,256.03,255.96,11.87472093]
[1732320662808,20.0,256.03,255.95,11.87472093]
[1732320663114,11.87472093,256.02,255.93,11.87472093]
[1732320663311,11.87472093,256.0,255.91,11.87472093]
[1732320663908,20.0,256.03,255.91,11.87472093]
[1732320664206,11.87472093,256.0,255.91,11.87472093]
[1732320664706,7.59998068,256.0,255.92,7.59998068]
[1732320665299,7.59998068,256.0,255.81,16.5289]
[1732320665300,7.59998068,256.0,255.9,7.59998068]
[1732320665603,20.0,255.99,255.9,7.59998068]
[1732320666393,7.59998068,255.98,255.9,7.59998068]
[1732320666796,7.59998068,255.96,255.81,16.5289]
[1732320666990,7.59998068,255.94,255.85,7.59998068]
[1732320670409,7.59998068,255.94,255.76,17.11509232]
[1732320670608,7.59998068,255.94,255.85,7.59998068]
[1732320673090,7.59998068,255.94,255.76,17.11509232]
[1732320673091,20.0,255.93,255.76,17.11509232]
[1732320673298,7.59998068,255.9,255.76,16.5289]
[1732320673601,7.59998068,255.9,255.81,7.59998068]
[1732320674190,7.59998068,255.88,255.79,7.59998068]
[1732320675397,7.59998068,255.86,255.79,7.59998068]
[1732320675600,20.0,255.85,255.79,7.59998068]
[1732320676011,6.5973,255.92,255.81,7.59998068]
[1732320676211,20.0,255.91,255.83,7.59998068]
[1732320677418,14.19728068,255.92,255.83,7.59998068]
[1732320677607,14.19728068,255.92,255.71,30.39992272]
[1732320677608,7.59998068,255.9,255.71,30.39992272]
[1732320677807,7.59998068,255.9,255.8,7.59998068]
[1732320678416,7.59998068,255.9,255.71,30.39992272]
[1732320678417,7.59998068,255.88,255.78,7.59998068]
[1732320678617,7.59998068,255.88,255.7,19.1511]
[1732320678618,20.0,255.85,255.7,16.6511]
[1732320678821,35.5921,255.85,255.7,16.6511]
[1732320679125,35.5921,255.85,255.76,7.59998068]
[1732320679431,7.59998068,255.83,255.76,7.59998068]
[1732320680299,20.0,255.82,255.73,7.59998068]
[1732320680506,20.0,255.8,255.71,7.59998068]
[1732320680717,7.59998068,255.77,255.58,2.5]
[1732320680927,7.59998068,255.75,255.67,7.59998068]
[1732320681225,7.59998068,255.77,255.69,7.59998068]
[1732320681722,20.0,255.76,255.69,7.59998068]
[1732320682204,6.5973,255.81,255.73,7.59998068]
[1732320682401,6.5973,255.81,255.77,7.59998068]
[1732320683201,6.5973,255.81,255.74,7.59998068]
[1732320683401,6.5973,255.81,255.72,7.59998068]
[1732320683819,7.59998068,255.8,255.62,0.58648513]
[1732320684019,7.59998068,255.8,255.71,7.59998068]
[1732320685124,20.0,255.77,255.61,0.58653427]
[1732320685421,7.59998068,255.76,255.67,7.59998068]
[1732320685803,23.19208068,255.74,255.58,30.39992272]
[1732320686006,23.19208068,255.74,255.66,7.59998068]
[1732320686630,7.59998068,255.72,255.53,2.5]
[1732320686806,20.0,255.71,255.53,2.5]
[1732320687006,14.19728068,255.7,255.53,2.5]
[1732320687221,14.19728068,255.7,255.61,7.59998068]
[1732320687438,14.19728068,255.7,255.53,2.5]
[1732320687724,14.19728068,255.7,255.5,16.6511]
[1732320687725,20.0,255.67,255.5,16.6511]
[1732320687905,20.0,255.67,255.58,7.59998068]
[1732320688328,20.0,255.67,255.5,16.6511]
[1732320688622,20.0,255.67,255.58,7.59998068]
[1732320688828,7.59998068,255.66,255.57,7.59998068]
[1732320689126,7.59998068,255.64,255.57,7.59998068]
[1732320690228,20.0,255.69,255.57,7.59998068]
[1732320690536,20.0,255.66,255.59,7.59998068]
[1732320690821,11.90546349,255.63,255.42,2.5]
[1732320691026,20.0,255.62,255.55,11.90546349]
[1732320691612,20.0,255.6,255.52,11.90546349]
[1732320692417,11.90546349,255.61,255.52,11.90546349]
[1732320692630,20.0,255.6,255.52,11.90546349]
[1732320693529,20.0,255.58,255.5,11.90546349]
[1732320695612,15.5921,255.65,255.57,11.90546349]
[1732320695814,15.5921,255.65,255.42,4.65065149]
[1732320695815,11.90546349,255.72,255.63,11.90546349]
[1732320696113,11.90546349,255.72,255.58,11.90546349]
[1732320696114,15.5575,255.73,255.67,11.90546349]
[1732320696324,15.5575,255.73,255.58,11.90546349]
[1732320696325,15.5575,255.73,255.65,11.90546349]
[1732320696518,27.46296349,255.73,255.65,11.90546349]
[1732320697032,27.46296349,255.73,255.54,0.58665106]
[1732320697033,27.46296349,255.73,255.63,11.90546349]
[1732320697235,11.90546349,255.71,255.61,11.90546349]
[1732320698022,11.90546349,255.71,255.63,11.90546349]
[1732320698719,20.0,255.7,255.63,11.90546349]
[1732320699033,27.46296349,255.73,255.63,11.90546349]
[1732320699218,15.5575,255.79,255.71,11.90546349]
[1732320699418,15.5575,255.85,255.78,11.90546349]
[1732320700334,15.5575,255.85,255.66,0.58636969]
[1732320700525,11.90546349,255.83,255.74,11.90546349]
[1732320700722,27.46296349,255.85,255.76,11.90546349]
[1732320701631,20.0,255.84,255.78,11.90546349]
[1732320703037,31.90546349,255.84,255.75,11.90546349]
[1732320703240,31.90546349,255.84,255.71,11.90546349]
[1732320703241,11.90546349,255.8,255.71,11.90546349]
[1732320703436,20.0,255.79,255.71,11.90546349]
[1732320704722,11.90546349,255.76,255.67,11.90546349]
[1732320705240,20.0,255.75,255.67,11.90546349]
[1732320706048,20.0,255.75,255.58,11.90546349]
[1732320706049,20.0,255.73,255.65,11.90546349]
[1732320706217,20.0,255.71,255.63,11.90546349]
[1732320708935,20.0,255.67,255.59,11.90546349]
[1732320709237,20.0,255.71,255.57,11.90546349]
[1732320709238,20.0,255.65,255.57,11.90546349]
[1732320709533,20.0,255.65,255.55,11.90546349]
[1732320709534,20.0,255.63,255.55,11.90546349]
[1732320711217,20.0,255.61,255.55,11.90546349]
[1732320711424,20.0,255.61,255.53,11.90546349]
[1732320711945,11.90546349,255.6,255.51,11.90546349]
[1732320712125,20.0,255.59,255.51,11.90546349]
[1732320713841,20.0,255.61,255.54,11.90546349]
[1732320714026,20.0,255.61,255.58,11.90546349]
[1732320714336,20.0,255.61,255.56,11.90546349]
[1732320715442,20.0,255.61,255.54,11.90546349]
[1732320715749,20.0,255.59,255.52,11.90546349]
[1732320717920,20.0,255.59,255.5,11.90546349]
[1732320718120,11.90546349,255.56,255.39,16.3292]
[1732320718348,21.8585,255.62,255.44,11.90546349]
[1732320718349,20.0,255.53,255.44,11.90546349]
[1732320719821,26.4806,255.51,255.44,11.90546349]
[1732320720018,26.4806,255.51,255.35,3.898]
[1732320720218,38.38606349,255.51,255.42,11.90546349]
[1732320720528,20.0,255.48,255.4,11.90546349]
[1732320721135,6.4806,255.51,255.38,11.90546349]
[1732320721136,20.0,255.46,255.38,11.90546349]
[1732320721335,20.0,255.42,255.34,11.90546349]
[1732320721646,20.0,255.4,255.34,11.90546349]
[1732320721947,20.0,255.4,255.32,11.90546349]
[1732320723439,6.4806,255.39,255.32,11.90546349]
[1732320723745,6.4806,255.39,255.19,33.12716349]
[1732320723746,20.0,255.38,255.3,11.90546349]
[1732320723931,20.0,255.38,255.32,11.90546349]
[1732320724929,20.0,255.38,255.3,11.90546349]
[1732320725128,20.0,255.38,255.32,11.90546349]
[1732320726027,6.4806,255.39,255.36,11.90546349]
[1732320726234,21.7329,255.47,255.38,11.90546349]
[1732320726435,21.7329,255.47,255.4,11.90546349]
[1732320728134,11.90546349,255.43,255.34,11.90546349]
[1732320728442,20.0,255.4,255.32,11.90546349]
[1732320730052,20.0,255.42,255.34,11.90546349]
[1732320731033,20.0,255.42,255.21,3.08748864]
[1732320731034,20.0,255.42,255.36,11.90546349]
[1732320732346,11.90546349,255.41,255.32,11.90546349]
[1732320732541,20.0,255.4,255.32,11.90546349]
[1732320734358,11.90546349,255.39,255.3,11.90546349]
[1732320734653,20.0,255.38,255.3,11.90546349]
[1732320735435,11.90546349,255.37,255.28,11.90546349]
[1732320735643,20.0,255.36,255.28,11.90546349]
[1732320736253,20.0,255.34,255.28,11.90546349]
[1732320736457,20.0,255.34,255.26,11.90546349]
[1732320738033,20.0,255.32,255.26,11.90546349]
[1732320738454,20.0,255.32,255.19,11.90546349]
[1732320738455,20.0,255.32,255.24,11.90546349]
[1732320739960,20.0,255.34,255.28,11.90546349]
[1732320740467,22.5524,255.35,255.3,11.90546349]
[1732320741673,22.5524,255.35,255.19,11.90546349]
[1732320741674,22.5524,255.35,255.32,11.90546349]
[1732320743350,20.0,255.34,255.32,11.90546349]
[1732320743746,20.0,255.34,255.3,11.90546349]
[1732320744039,31.90546349,255.34,255.26,11.90546349]
[1732320745164,20.0,255.34,255.28,11.90546349]
[1732320745357,20.0,255.34,255.32,11.90546349]